fUST/lending_fUST_20240906
["ID","MTS","AMOUNT","RATE_DAILY","PERIOD"]
[337337539,1725616239906,-500.0,0.00019318,2]
[337337541,1725616239915,-500.0,0.00019318,2]
[337337543,1725616239925,-500.0,0.00019318,2]
[337337545,1725616239934,-51185.71094631,0.00019319,3]
[337337547,1725616239944,-48650.10126323,0.00019319,5]
[337337549,1725616239953,-353834.764893,0.00019319,2]
[337337551,1725616239963,-433737.809254,0.00019319,2]
[337337553,1725616239973,-500.0,0.00019328,2]
[337337555,1725616239982,-500.0,0.00019328,2]
[337337557,1725616239992,-524.59,0.00019328,2]
[337337559,1725616240002,-500.0,0.00019328,2]
[337337560,1725616240020,-500.0,0.00019328,2]
[337337561,1725616240029,-500.0,0.00019328,2]
[337337562,1725616240038,-500.0,0.00019328,2]
[337337563,1725616240048,-500.0,0.00019328,2]
[337337564,1725616240058,-500.0,0.00019328,2]
[337337565,1725616240067,-500.0,0.00019328,2]
[337337566,1725616240077,-530.25,0.00019328,2]
[337337568,1725616240086,-500.0,0.00019328,2]
[337337569,1725616240095,-500.0,0.00019328,2]
[337337570,1725616240109,-500.0,0.00019328,2]
[337337571,1725616240119,-500.0,0.00019328,2]
[337337572,1725616240129,-500.0,0.00019328,2]
[337337573,1725616240138,-500.0,0.00019328,2]
[337337574,1725616240148,-500.0,0.00019328,2]
[337337577,1725616240158,-500.0,0.00019328,2]
[337337578,1725616240167,-500.0,0.00019328,2]
[337337580,1725616240177,-500.0,0.00019328,2]
[337337582,1725616240187,-500.0,0.00019328,2]
[337337584,1725616240197,-500.0,0.00019328,2]
[337337586,1725616240207,-500.0,0.00019328,2]
[337337588,1725616240216,-500.0,0.00019328,2]
[337337590,1725616240226,-500.0,0.00019328,2]
[337337591,1725616240235,-500.0,0.00019328,2]
[337337592,1725616240244,-500.0,0.00019328,2]
[337337593,1725616240255,-597.9,0.00019328,2]
[337337594,1725616240266,-500.0,0.00019328,2]
[337337595,1725616240276,-500.0,0.00019328,2]
[337337596,1725616240286,-500.0,0.00019328,2]
[337337597,1725616240296,-500.0,0.00019328,2]
[337337598,1725616240307,-500.0,0.00019328,2]
[337337599,1725616240317,-245.65856709,0.00019328,2]
[337337600,1725616240327,-500.0,0.00019328,2]
[337337601,1725616240337,-500.0,0.00019328,2]
[337337602,1725616240347,-500.0,0.00019328,2]
[337337603,1725616240356,-500.0,0.00019328,2]
[337337604,1725616240365,-500.0,0.00019328,2]
[337337605,1725616240375,-500.0,0.00019328,2]
[337337606,1725616240384,-500.0,0.00019328,2]
[337337607,1725616240394,-500.0,0.00019328,2]
[337337608,1725616240403,-500.0,0.00019328,2]
[337337609,1725616240412,-500.0,0.00019328,2]
[337337610,1725616240422,-556.38908231,0.00019328,2]
[337337611,1725616240432,-500.0,0.00019328,2]
[337337612,1725616240442,-500.0,0.00019328,2]
[337337613,1725616240452,-1014.52,0.00019328,2]
[337337614,1725616240462,-1684.13,0.00019328,2]
[337337615,1725616240472,-500.0,0.00019328,2]
[337337616,1725616240482,-501.21870796,0.00019328,2]
[337337617,1725616240492,-500.0,0.00019328,2]
[337337618,1725616240502,-500.0,0.00019328,2]
[337337619,1725616240518,-679.08,0.00019328,2]
[337337620,1725616240528,-679.08,0.00019328,2]
[337337621,1725616240537,-679.08,0.00019328,2]
[337337622,1725616240549,-679.08,0.00019328,2]
[337337623,1725616240560,-5454.76,0.00019328,2]
[337337624,1725616240569,-679.08,0.00019328,2]
[337337625,1725616240579,-500.0,0.00019328,2]
[337337626,1725616240591,-500.0,0.00019328,2]
[337337627,1725616240601,-500.0,0.00019328,2]
[337337628,1725616240611,-500.0,0.00019328,2]
[337337629,1725616240621,-2248.23,0.00019328,2]
[337337630,1725616240633,-500.0,0.00019328,2]
[337337631,1725616240644,-500.0,0.00019328,2]
[337337632,1725616240654,-500.0,0.00019328,2]
[337337633,1725616240664,-500.0,0.00019328,2]
[337337634,1725616240674,-2658.06,0.00019328,2]
[337337635,1725616240683,-500.0,0.00019328,2]
[337337636,1725616240693,-500.0,0.00019328,2]
[337337637,1725616240703,-500.0,0.00019328,2]
[337337638,1725616240712,-200.0,0.00019328,2]
[337337639,1725616240722,-500.0,0.00019328,2]
[337337640,1725616240732,-526.84464015,0.00019328,2]
[337337641,1725616240741,-1854.51,0.00019328,2]
[337337642,1725616240751,-1092.94,0.00019328,2]
[337337643,1725616240763,-500.0,0.00019328,2]
[337337644,1725616240773,-500.0,0.00019328,2]
[337337645,1725616240782,-339.49052472,0.00019328,2]
[337337646,1725616240792,-500.0,0.00019328,2]
[337337647,1725616240801,-500.0,0.00019328,2]
[337337648,1725616240810,-576.35,0.00019328,2]
[337337649,1725616240820,-500.0,0.00019328,2]
[337337650,1725616240830,-500.0,0.00019328,2]
[337337651,1725616240839,-666.66,0.00019328,2]
[337337652,1725616240849,-8739.67,0.00019328,2]
[337337653,1725616240859,-510.68,0.00019328,2]
[337337654,1725616240868,-500.0,0.00019328,2]
[337337655,1725616240878,-500.0,0.00019328,2]
[337337656,1725616240888,-2225.86,0.00019328,2]
[337337657,1725616240898,-500.0,0.00019328,2]
[337337658,1725616240907,-194944.9126478,0.00019329,2]
[337337659,1725616240917,-500.0,0.00019373,2]
[337337660,1725616240927,-571.02201792,0.00019405,2]
[337337661,1725616240936,-2754.34325885,0.00019415,2]
[337337662,1725616240946,-3021.64871583,0.00019425,2]
[337337663,1725616240956,-150.112233,0.000195,2]
[337337664,1725616240965,-150.112233,0.000195,2]
[337337665,1725616240975,-150.112233,0.000195,2]
[337337666,1725616240985,-150.112233,0.000195,2]
[337337667,1725616240995,-150.112233,0.000195,2]
[337337668,1725616241004,-150.112233,0.000195,2]
[337337669,1725616241014,-150.112233,0.000195,2]
[337337670,1725616241023,-150.112233,0.000195,2]
[337337671,1725616241033,-150.112233,0.000195,2]
[337337672,1725616241043,-150.112233,0.000195,2]
[337337673,1725616241052,-150.112233,0.000195,2]
[337337674,1725616241063,-150.112233,0.000195,2]
[337337675,1725616241073,-150.112233,0.000195,2]
[337337676,1725616241083,-150.112233,0.000195,2]
[337337677,1725616241093,-150.112233,0.000195,2]
[337337678,1725616241102,-150.112233,0.000195,2]
[337337679,1725616241112,-150.112236,0.000195,2]
[337337680,1725616241122,-679.08,0.00019503,2]
[337337681,1725616241131,-152.964959,0.00019504,2]
[337337682,1725616241141,-151.0,0.00019504,2]
[337337683,1725616241150,-151.0,0.00019504,2]
[337337684,1725616241159,-151.0,0.00019504,2]
[337337685,1725616241169,-151.0,0.00019504,2]
[337337686,1725616241178,-2826.579399,0.00019504,2]
[337337687,1725616241187,-193.803468,0.00019504,2]
[337337688,1725616241196,-2826.579399,0.00019504,2]
[337337689,1725616241206,-2977.957404,0.00019504,2]
[337337690,1725616241215,-151.0,0.00019504,2]
[337337691,1725616241224,-2977.957404,0.00019504,2]
[337337692,1725616241234,-151.0,0.00019504,2]
[337337693,1725616241243,-5223.473307,0.00019504,2]
[337337694,1725616241252,-5223.473307,0.00019504,2]
[337337695,1725616241263,-3242.877361,0.00019504,2]
[337337696,1725616241273,-3242.877361,0.00019504,2]
[337337697,1725616241283,-198.224654,0.00019504,2]
[337337698,1725616241292,-166.327334,0.00019504,2]
[337337699,1725616241302,-198.224654,0.00019504,2]
[337337700,1725616241311,-990.668611,0.00019504,2]
[337337701,1725616241320,-151.0,0.00019504,2]
[337337702,1725616241330,-990.668611,0.00019504,2]
[337337703,1725616241339,-679.08,0.00019504,2]
[337337704,1725616241349,-679.08,0.00019504,2]
[337337705,1725616241358,-679.08,0.00019504,2]
[337337706,1725616241368,-679.08,0.00019504,2]
[337337707,1725616241378,-151.0,0.00019504,2]
[337337708,1725616241387,-679.08,0.00019504,2]
[337337709,1725616241396,-679.08,0.00019504,2]
[337337710,1725616241405,-679.08,0.00019504,2]
[337337711,1725616241416,-679.08,0.00019504,2]
[337337712,1725616241425,-679.08,0.00019504,2]
[337337713,1725616241435,-679.08,0.00019504,2]
[337337714,1725616241443,-679.08,0.00019504,2]
[337337715,1725616241452,-679.08,0.00019504,2]
[337337716,1725616241461,-679.08,0.00019504,2]
[337337717,1725616241471,-679.08,0.00019504,2]
[337337718,1725616241480,-679.08,0.00019504,2]
[337337719,1725616241490,-679.08,0.00019504,2]
[337337720,1725616241499,-679.08,0.00019504,2]
[337337721,1725616241510,-679.1228085,0.00019504,2]
[337337722,1725616241520,-2083.780525,0.00019504,2]
[337337723,1725616241530,-2083.780525,0.00019504,2]
[337337724,1725616241540,-151.0,0.00019505,2]
[337337725,1725616241555,-151.0,0.00019505,2]
[337337726,1725616241564,-151.0,0.00019505,2]
[337337727,1725616241574,-151.0,0.00019505,2]
[337337728,1725616241583,-703.211007,0.00019505,2]
[337337729,1725616241593,-703.211007,0.00019505,2]
[337337730,1725616241603,-151.0,0.00019505,2]
[337337731,1725616241613,-151.0,0.00019505,2]
[337337732,1725616241623,-151.0,0.00019505,2]
[337337733,1725616241633,-2826.579399,0.00019505,2]
[337337734,1725616241642,-2826.579399,0.00019505,2]
[337337735,1725616241652,-2977.957404,0.00019505,2]
[337337736,1725616241661,-151.0,0.00019505,2]
[337337737,1725616241671,-2977.957404,0.00019505,2]
[337337738,1725616241680,-151.0,0.00019505,2]
[337337739,1725616241690,-5223.473307,0.00019505,2]
[337337740,1725616241699,-4000.0,0.00019505,2]
[337337741,1725616241708,-4000.0,0.00019505,2]
[337337742,1725616241718,-4000.0,0.00019505,2]
[337337743,1725616241728,-4000.0,0.00019505,2]
[337337744,1725616241738,-1794.437912,0.00019505,2]
[337337745,1725616241747,-5223.473307,0.00019505,2]
[337337746,1725616241757,-3242.877361,0.00019505,2]
[337337747,1725616241767,-3242.877361,0.00019505,2]
[337337748,1725616241776,-198.224654,0.00019505,2]
[337337749,1725616241786,-198.224654,0.00019505,2]
[337337750,1725616241795,-990.668611,0.00019505,2]
[337337751,1725616241806,-151.0,0.00019505,2]
[337337752,1725616241815,-990.668611,0.00019505,2]
[337337753,1725616241825,-151.0,0.00019505,2]
[337337754,1725616241835,-151.0,0.00019505,2]
[337337755,1725616241844,-151.0,0.00019505,2]
[337337756,1725616241854,-444.639241,0.00019505,2]
[337337757,1725616241864,-444.639241,0.00019505,2]
[337337758,1725616241874,-151.0,0.00019505,2]
[337337759,1725616241883,-2083.780525,0.00019505,2]
[337337760,1725616241893,-2083.780525,0.00019505,2]
[337337761,1725616241903,-151.0,0.00019505,2]
[337337762,1725616241912,-151.0,0.00019505,2]
[337337763,1725616241922,-151.0,0.00019505,2]
[337337764,1725616241931,-151.0,0.00019505,2]
[337337765,1725616241941,-2222.54,0.00019513,2]
[337337766,1725616241951,-500.09657772,0.00019513,2]
[337337767,1725616241961,-1574.63,0.00019513,2]
[337337768,1725616241971,-500.0,0.00019513,2]
[337337769,1725616241981,-1636.67,0.00019513,2]
[337337770,1725616241991,-2241.31,0.00019513,2]
[337337771,1725616242000,-500.0,0.00019513,2]
[337337772,1725616242010,-3598.85,0.00019513,2]
[337337773,1725616242019,-10461.52,0.00019513,2]
[337337774,1725616242029,-2862.17,0.00019513,2]
[337337775,1725616242039,-500.0,0.00019513,2]
[337337776,1725616242048,-500.0,0.00019513,2]
[337337777,1725616242059,-3268.91,0.00019513,2]
[337337778,1725616242068,-1863.36,0.00019513,2]
[337337779,1725616242078,-2031.81,0.00019513,2]
[337337780,1725616242088,-541.92,0.00019513,2]
[337337781,1725616242098,-1790.24,0.00019513,2]
[337337782,1725616242108,-502.6155908,0.00019513,2]
[337337783,1725616242117,-27992.48,0.00019513,2]
[337337784,1725616242127,-500.0,0.00019513,2]
[337337785,1725616242137,-3652.89,0.00019513,2]
[337337786,1725616242146,-1548.11,0.00019513,2]
[337337787,1725616242155,-2905.28,0.00019513,2]
[337337788,1725616242165,-500.0,0.00019513,2]
[337337789,1725616242176,-3203.93,0.00019513,2]
[337337790,1725616242186,-608.53,0.00019513,2]
[337337791,1725616242196,-500.0,0.00019513,2]
[337337792,1725616242206,-4056.18,0.00019513,2]
[337337793,1725616242216,-564.76,0.00019513,2]
[337337794,1725616242226,-500.0,0.00019514,2]
[337337795,1725616242236,-500.0,0.00019514,2]
[337337796,1725616242246,-500.0,0.00019514,2]
[337337797,1725616242257,-500.0,0.00019514,2]
[337337798,1725616242268,-500.0,0.00019514,2]
[337337799,1725616242279,-500.0,0.00019514,2]
[337337800,1725616242288,-500.0,0.00019514,2]
[337337801,1725616242297,-1016.55,0.00019514,2]
[337337802,1725616242307,-500.0,0.00019514,2]
[337337803,1725616242316,-2416.8,0.00019514,2]
[337337804,1725616242325,-2211.62,0.00019514,2]
[337337805,1725616242334,-500.0,0.00019514,2]
[337337806,1725616242344,-1179.43,0.00019514,2]
[337337807,1725616242354,-648.77330944,0.00019514,2]
[337337808,1725616242364,-500.0,0.00019514,2]
[337337809,1725616242374,-513.66884988,0.00019514,2]
[337337810,1725616242383,-896.03,0.00019514,2]
[337337811,1725616242392,-500.0,0.00019514,2]
[337337812,1725616242402,-500.0,0.00019514,2]
[337337813,1725616242411,-500.0,0.00019514,2]
[337337814,1725616242420,-500.0,0.00019514,2]
[337337815,1725616242430,-500.0,0.00019514,2]
[337337816,1725616242439,-651.19,0.00019514,2]
[337337817,1725616242449,-252.191736,0.00019514,2]
[337337818,1725616242459,-740.72,0.00019514,2]
[337337819,1725616242469,-500.0,0.00019514,2]
[337337820,1725616242480,-500.0,0.00019514,2]
[337337821,1725616242490,-500.0,0.00019514,2]
[337337822,1725616242500,-500.0,0.00019514,2]
[337337823,1725616242511,-709.088177,0.00019514,2]
[337337824,1725616242520,-460.07674919,0.00019514,2]
[337337825,1725616242530,-500.0,0.00019514,2]
[337337826,1725616242539,-500.0,0.00019514,2]
[337337827,1725616242552,-500.0,0.00019514,2]
[337337828,1725616242562,-500.0,0.00019514,2]
[337337829,1725616242571,-3108.09,0.00019514,2]
[337337831,1725616242581,-500.0,0.00019514,2]
[337337833,1725616242591,-500.0,0.00019514,2]
[337337834,1725616242600,-151.0,0.00019514,2]
[337337835,1725616242610,-4020.89,0.00019514,2]
[337337836,1725616242620,-500.0,0.00019514,2]
[337337837,1725616242632,-675.34,0.00019514,2]
[337337839,1725616242642,-500.0,0.00019514,2]
[337337842,1725616242651,-500.0,0.00019514,2]
[337337843,1725616242661,-500.0,0.00019514,2]
[337337845,1725616242671,-500.0,0.00019514,2]
[337337847,1725616242681,-500.0,0.00019514,2]
[337337848,1725616242691,-500.0,0.00019514,2]
[337337850,1725616242700,-500.0,0.00019514,2]
[337337852,1725616242710,-500.0,0.00019514,2]
[337337854,1725616242720,-151.0,0.00019514,2]
[337337856,1725616242730,-1947.37,0.00019514,2]
[337337857,1725616242739,-1805.250038,0.00019514,2]
[337337858,1725616242748,-151.0,0.00019514,2]
[337337859,1725616242759,-1805.250038,0.00019514,2]
[337337860,1725616242768,-1058.62,0.00019514,2]
[337337861,1725616242777,-2123.69,0.00019514,2]
[337337862,1725616242787,-1253.38,0.00019514,2]
[337337863,1725616242797,-500.0,0.00019514,2]
[337337864,1725616242806,-500.0,0.00019514,2]
[337337865,1725616242816,-2387.58,0.00019514,2]
[337337866,1725616242826,-151.0,0.00019514,2]
[337337867,1725616242837,-861.46,0.00019514,2]
[337337868,1725616242846,-151.0,0.00019514,2]
[337337869,1725616242855,-151.0,0.00019514,2]
[337337870,1725616242865,-545.23925302,0.00019514,2]
[337337871,1725616242874,-1726.32,0.00019514,2]
[337337872,1725616242884,-703.211007,0.00019514,2]
[337337873,1725616242894,-3092.75,0.00019514,2]
[337337874,1725616242903,-703.211007,0.00019514,2]
[337337875,1725616242912,-500.0,0.00019514,2]
[337337876,1725616242921,-151.0,0.00019514,2]
[337337877,1725616242931,-500.0,0.00019514,2]
[337337878,1725616242940,-1079.94,0.00019514,2]
[337337879,1725616242950,-151.0,0.00019514,2]
[337337880,1725616242959,-151.0,0.00019514,2]
[337337881,1725616242968,-634.49,0.00019514,2]
[337337882,1725616242978,-2299.74,0.00019514,2]
[337337883,1725616242987,-1430.1,0.00019514,2]
[337337884,1725616242996,-3738.86,0.00019514,2]
[337337885,1725616243006,-151.0,0.00019514,2]
[337337886,1725616243016,-2826.579399,0.00019514,2]
[337337887,1725616243026,-10461.52,0.00019514,2]
[337337888,1725616243035,-10461.52,0.00019514,2]
[337337890,1725616243045,-10461.52,0.00019514,2]
[337337892,1725616243054,-10461.52,0.00019514,2]
[337337894,1725616243064,-10461.52,0.00019514,2]
[337337896,1725616243073,-10461.52,0.00019514,2]
[337337897,1725616243083,-10461.52,0.00019514,2]
[337337898,1725616243092,-10461.52,0.00019514,2]
[337337899,1725616243102,-2826.579399,0.00019514,2]
[337337900,1725616243112,-10461.52,0.00019514,2]
[337337901,1725616243121,-10461.52,0.00019514,2]
[337337902,1725616243132,-10461.52,0.00019514,2]
[337337903,1725616243141,-10461.52,0.00019514,2]
[337337904,1725616243150,-10461.52,0.00019514,2]
[337337905,1725616243160,-1682.65,0.00019514,2]
[337337906,1725616243169,-1682.65,0.00019514,2]
[337337907,1725616243178,-1682.65,0.00019514,2]
[337337908,1725616243188,-3020.21,0.00019514,2]
[337337909,1725616243198,-1682.65,0.00019514,2]
[337337910,1725616243207,-1682.65,0.00019514,2]
[337337911,1725616243216,-1682.65,0.00019514,2]
[337337912,1725616243226,-1682.65,0.00019514,2]
[337337913,1725616243235,-1682.65,0.00019514,2]
[337337914,1725616243245,-1682.65,0.00019514,2]
[337337915,1725616243254,-1682.65,0.00019514,2]
[337337916,1725616243270,-1682.65,0.00019514,2]
[337337917,1725616243279,-1682.65,0.00019514,2]
[337337918,1725616243289,-151.0,0.00019514,2]
[337337919,1725616243298,-2164.45,0.00019514,2]
[337337920,1725616243308,-500.0,0.00019514,2]
[337337921,1725616243317,-1583.39,0.00019514,2]
[337337922,1725616243327,-151.0,0.00019514,2]
[337337923,1725616243336,-3903.99,0.00019514,2]
[337337924,1725616243345,-179.86031609,0.00019514,2]
[337337925,1725616243355,-1076.7,0.00019514,2]
[337337926,1725616243365,-1681.25,0.00019514,2]
[337337927,1725616243375,-607.56,0.00019514,2]
[337337928,1725616243384,-3677.51,0.00019514,2]
[337337929,1725616243394,-500.0,0.00019514,2]
[337337930,1725616243403,-2977.957404,0.00019514,2]
[337337931,1725616243413,-2977.957404,0.00019514,2]
[337337932,1725616243422,-500.0,0.00019514,2]
[337337933,1725616243432,-151.0,0.00019514,2]
[337337934,1725616243441,-151.0,0.00019514,2]
[337337935,1725616243451,-2977.957404,0.00019514,2]
[337337936,1725616243461,-2977.957404,0.00019514,2]
[337337937,1725616243645,-151.0,0.00019514,2]
[337337938,1725616243656,-5223.473307,0.00019514,2]
[337337939,1725616243665,-151.0,0.00019514,2]
[337337940,1725616243674,-740.19,0.00019514,2]
[337337941,1725616243684,-500.0,0.00019514,2]
[337337942,1725616243693,-5223.473307,0.00019514,2]
[337337943,1725616243702,-500.0,0.00019514,2]
[337337944,1725616243712,-3242.877361,0.00019514,2]
[337337945,1725616243722,-3242.877361,0.00019514,2]
[337337946,1725616243732,-500.0,0.00019514,2]
[337337947,1725616243742,-3242.877361,0.00019514,2]
[337337948,1725616243751,-3403.01,0.00019514,2]
[337337949,1725616243767,-3242.877361,0.00019514,2]
[337337950,1725616243782,-501.98512959,0.00019514,2]
[337337951,1725616243792,-536.6517579,0.00019514,2]
[337337952,1725616243802,-692.01,0.00019514,2]
[337337953,1725616243812,-198.224654,0.00019514,2]
[337337954,1725616243821,-198.224654,0.00019514,2]
[337337955,1725616243830,-198.224654,0.00019514,2]
[337337956,1725616243840,-500.0,0.00019514,2]
[337337957,1725616243850,-198.224654,0.00019514,2]
[337337958,1725616243859,-502.99532719,0.00019514,2]
[337337959,1725616243869,-919.5,0.00019514,2]
[337337960,1725616243878,-990.668611,0.00019514,2]
[337337961,1725616243887,-500.0,0.00019514,2]
[337337962,1725616243897,-990.668611,0.00019514,2]
[337337963,1725616243906,-3449.59,0.00019514,2]
[337337964,1725616243916,-151.0,0.00019514,2]
[337337965,1725616243926,-151.0,0.00019514,2]
[337337966,1725616243936,-990.668611,0.00019514,2]
[337337967,1725616243946,-990.668611,0.00019514,2]
[337337968,1725616243955,-154.387509,0.00019514,2]
[337337969,1725616243965,-500.0,0.00019514,2]
[337337970,1725616243975,-500.0,0.00019514,2]
[337337971,1725616243984,-511.12,0.00019514,2]
[337337972,1725616243994,-500.0,0.00019514,2]
[337337973,1725616244003,-49554.43,0.00019514,2]
[337337974,1725616244019,-741.23,0.00019514,2]
[337337975,1725616244029,-2222.85,0.00019514,2]
[337337976,1725616244038,-151.0,0.00019514,2]
[337337977,1725616244047,-151.0,0.00019514,2]
[337337978,1725616244057,-151.0,0.00019514,2]
[337337979,1725616244066,-500.0,0.00019514,2]
[337337980,1725616244076,-605.47,0.00019514,2]
[337337981,1725616244085,-222.161954,0.00019514,2]
[337337982,1725616244099,-500.0,0.00019514,2]
[337337983,1725616244108,-444.639241,0.00019514,2]
[337337984,1725616244118,-912.95,0.00019514,2]
[337337985,1725616244127,-444.639241,0.00019514,2]
[337337986,1725616244136,-444.639241,0.00019514,2]
[337337987,1725616244146,-444.639241,0.00019514,2]
[337337988,1725616244155,-444.639241,0.00019514,2]
[337337989,1725616244165,-444.639241,0.00019514,2]
[337337990,1725616244174,-500.0,0.00019514,2]
[337337991,1725616244183,-500.0,0.00019514,2]
[337337992,1725616244192,-2711.58,0.00019514,2]
[337337993,1725616244201,-1495.21,0.00019514,2]
[337337994,1725616244210,-1495.21,0.00019514,2]
[337337995,1725616244220,-1495.21,0.00019514,2]
[337337996,1725616244229,-1495.21,0.00019514,2]
[337337997,1725616244238,-1495.21,0.00019514,2]
[337337998,1725616244248,-151.0,0.00019514,2]
[337337999,1725616244259,-1495.21,0.00019514,2]
[337338000,1725616244268,-155.301988,0.00019514,2]
[337338001,1725616244278,-1495.21,0.00019514,2]
[337338002,1725616244287,-1495.21,0.00019514,2]
[337338003,1725616244297,-1495.21,0.00019514,2]
[337338004,1725616244307,-1495.21,0.00019514,2]
[337338005,1725616244317,-1495.21,0.00019514,2]
[337338006,1725616244327,-1495.21,0.00019514,2]
[337338007,1725616244336,-1038.96,0.00019514,2]
[337338008,1725616244346,-1000.0,0.00019514,2]
[337338009,1725616244355,-1179.31,0.00019514,2]
[337338010,1725616244365,-556.96049972,0.00019514,2]
[337338011,1725616244374,-2083.780525,0.00019514,2]
[337338012,1725616244384,-2083.780525,0.00019514,2]
[337338013,1725616244393,-500.0,0.00019514,2]
[337338014,1725616244403,-500.0,0.00019514,2]
[337338015,1725616244412,-2083.780525,0.00019514,2]
[337338016,1725616244421,-2083.780525,0.00019514,2]
[337338017,1725616244431,-500.0,0.00019514,2]
[337338018,1725616244440,-209.67090129,0.00019514,2]
[337338019,1725616244450,-151.0,0.00019514,2]
[337338020,1725616244459,-151.0,0.00019514,2]
[337338021,1725616244468,-151.0,0.00019514,2]
[337338022,1725616244477,-151.0,0.00019514,2]
[337338023,1725616244486,-151.0,0.00019514,2]
[337338024,1725616244496,-151.0,0.00019514,2]
[337338025,1725616244517,-151.0,0.00019514,2]
[337338026,1725616244529,-151.0,0.00019514,2]
[337338027,1725616244538,-151.0,0.00019514,2]
[337338028,1725616244549,-757.5,0.00019514,2]
[337338029,1725616244558,-151.0,0.00019514,2]
[337338030,1725616244568,-3505.48,0.00019514,2]
[337338031,1725616244577,-151.0,0.00019514,2]
[337338032,1725616244586,-151.0,0.00019514,2]
[337338033,1725616244596,-10461.52,0.00019523,2]
[337338034,1725616244606,-10461.52,0.00019523,2]
[337338035,1725616244615,-1682.65,0.00019523,2]
[337338036,1725616244624,-1495.21,0.00019523,2]
[337338037,1725616244636,-2083.780525,0.00019523,2]
[337338038,1725616244645,-2083.780525,0.00019523,2]
[337338039,1725616244654,-709.088177,0.00019524,2]
[337338040,1725616244663,-709.088177,0.00019524,2]
[337338041,1725616244673,-151.0,0.00019524,2]
[337338042,1725616244683,-151.0,0.00019524,2]
[337338043,1725616244692,-500.0,0.00019524,2]
[337338044,1725616244701,-151.0,0.00019524,2]
[337338045,1725616244710,-151.0,0.00019524,2]
[337338046,1725616244719,-1805.250038,0.00019524,2]
[337338047,1725616244729,-500.0,0.00019524,2]
[337338048,1725616244738,-193.552493,0.00019524,2]
[337338049,1725616244747,-1805.250038,0.00019524,2]
[337338050,1725616244759,-3382.2,0.00019524,2]
[337338051,1725616244769,-831.18,0.00019524,2]
[337338052,1725616244778,-2996.97,0.00019524,2]
[337338053,1725616244788,-151.0,0.00019524,2]
[337338054,1725616244797,-500.0,0.00019524,2]
[337338055,1725616244807,-151.0,0.00019524,2]
[337338056,1725616244816,-151.0,0.00019524,2]
[337338057,1725616244826,-151.0,0.00019524,2]
[337338058,1725616244835,-703.211007,0.00019524,2]
[337338059,1725616244845,-703.211007,0.00019524,2]
[337338060,1725616244855,-703.211007,0.00019524,2]
[337338061,1725616244865,-703.211007,0.00019524,2]
[337338062,1725616244874,-151.0,0.00019524,2]
[337338063,1725616244884,-151.0,0.00019524,2]
[337338064,1725616244893,-151.0,0.00019524,2]
[337338065,1725616244903,-300.463295,0.00019524,2]
[337338066,1725616244912,-151.0,0.00019524,2]
[337338067,1725616244921,-1943.02,0.00019524,2]
[337338068,1725616244930,-151.0,0.00019524,2]
[337338069,1725616244939,-2826.579399,0.00019524,2]
[337338070,1725616244949,-2826.579399,0.00019524,2]
[337338071,1725616244958,-2826.579399,0.00019524,2]
[337338072,1725616244968,-2826.579399,0.00019524,2]